Cogmind - Beta 13 @@@ ROGUE MODE // 2024.04.03 @ 23:23:28 Player: captainketchup Result: Destroyed by D-53 Grenadier with Mini Grenade Launcher Performance ------------- Evolutions (0) 0 Regions Visited (4) 800 Robots Destroyed (14) 70 Value Destroyed (331) 331 Prototype IDs (2) 40 Alien Tech Used (0) 0 Bonus (300) 300 TOTAL SCORE: 1541 Bonus ------- Aligned with FarCom 300 Cogmind --------- Core Integrity 0/250 Matter 230/300 Energy 154/160 System Corruption 10% Temperature Warm (101) Movement Core (450) Ox8 Location -9/Mines Parts ------- > --- POWER (1) -------- Light Nuclear Core > --- PROPULSION (2) --- (None) > --- UTILITY (2) ------ Large Storage Unit Machine Analyzer > --- WEAPON (2) ------- Light Assault Rifle > --- INVENTORY (15) --- Ion Engine Compact Wheel Compact Wheel Small Laser Particle Gun Light Assault Rifle Light Assault Rifle AWS/Autocannon Grenade Launcher Hammer Peak State ------------ > --- POWER ------------ Light Ion Engine > --- PROPULSION ------- Light Treads Light Treads > --- UTILITY ---------- Large Storage Unit Machine Analyzer > --- WEAPON ----------- AWS/Gauss > --- INVENTORY -------- Ion Engine Light Ion Engine Light Nuclear Core Compact Wheel Compact Wheel Medium Laser Small Laser Small Laser Particle Gun Light Assault Rifle Light Assault Rifle Light Assault Rifle Grenade Launcher Grenade Launcher Hammer [Rating: 24] Favorites ----------- Power Light Ion Engine Engine Light Ion Engine Power Core Light Nuclear Core Propulsion Light Treads Treads Light Treads Utility Large Storage Unit Storage Large Storage Unit Processor Machine Analyzer Weapon Small Laser Energy Gun Small Laser Ballistic Gun Light Assault Rifle Launcher Grenade Launcher Impact Weapon Hammer Slashing Weapon Longsword +1 Build | -11 -10 -10 -10 -9 ------- Run | Yrd Mat Min Exi Min Slots Evolved . | . . . . . Power . | . . . . . Propulsion . | . . . . . Utility . | . . . . . Weapon . | . . . . . Parts Attached 20 | 6 2 3 6 3 Power 3 | 1 . 1 . 1 Engine 2 | 1 . 1 . . Core 1 | . . . . 1 Reactor . | . . . . . Propulsion 3 | 2 . . 1 . Treads 3 | 2 . . 1 . Leg . | . . . . . Wheel . | . . . . . Hover . | . . . . . Flight . | . . . . . Utility 3 | 1 2 . . . Device . | . . . . . Storage 2 | 1 1 . . . Processor 1 | . 1 . . . Hackware . | . . . . . Protection . | . . . . . Artifact . | . . . . . Weapon 11 | 2 . 2 5 2 Energy Gun 5 | 2 . . 3 . Energy Cannon . | . . . . . Ballistic Gun 3 | . . 1 1 1 Ballistic Cannon . | . . . . . Launcher 1 | . . . . 1 Special Weapon . | . . . . . Impact Weapon 1 | . . 1 . . Slashing Weapon 1 | . . . 1 . Piercing Weapon . | . . . . . Special Melee Weapon . | . . . . . Unidentified Prototypes 2 | . . . 2 . Parts Lost 9 | . 1 2 . 6 Power 2 | . 1 . . 1 Propulsion 3 | . . 1 . 2 Utility . | . . . . . Weapon 4 | . . 1 . 3 Highest Loss Streak 6 | . 1 2 . 6 To Critical Strikes . | . . . . . Average Slot Usage (%) 92 | . 84 85 97 95 Engine 11 | . 6 11 14 12 Treads 25 | . 28 16 26 26 Storage 14 | . 14 14 14 14 Processor 12 | . 6 14 14 14 Energy Gun 19 | . 28 16 15 24 Ballistic Gun 2 | . . 11 . . Impact Weapon 5 | . . . 11 . Naked Turns . | . . . . . Heaviest Build 28 | 13 28 26 26 26 Greatest Support 40 | 40 40 40 40 40 Greatest Overweight (x) 1 | . . 1 1 . Average Overweight (x) . | . . . . . Largest Inventory Capacity 15 | 8 15 15 15 15 Average Capacity 14 | 7 13 15 15 15 Most Carried 15 | 3 14 15 15 15 Average Carried 12 | 2 7 14 14 14 Final Capacity 15 | 8 15 15 15 15 Final Carried 15 | 3 14 15 15 12 Class Distribution -------------------- 100% | Mutant Dominant Class ---------------- Mutant | -10/Materials Mutant | -10/Mines Mutant | -10/Exiles Mutant | -9/Mines Resources | -11 -10 -10 -10 -9 ----------- Run | Yrd Mat Min Exi Min Matter Collected 363 | 218 62 12 . 71 Remotely . | . . . . . Salvage Created 461 | . 342 72 . 47 Parts 23 | . 16 6 . 1 Haulers Intercepted 1 | . 1 . . . Recyclers Shooed . | . . . . . Parts Field Recycled . | . . . . . Retrieved Matter . | . . . . . Parts Self-Destructed . | . . . . . Prevented . | . . . . . Kills | -11 -10 -10 -10 -9 ------- Run | Yrd Mat Min Exi Min Combat Hostiles Destroyed 14 | . 4 2 . 8 Guns 8 | . 4 2 . 2 AOE 6 | . . . . 6 Classes Destroyed 7 | . 6 . . 1 Worker 1 | . 1 . . . Tunneler 2 | . 1 . . 1 Hauler 1 | . 1 . . . Mechanic 1 | . 1 . . . Watcher 3 | . 3 . . . Grunt 6 | . 4 2 . . Assembled 8 | . . . . 8 Best Kill Streak 9 | . 4 2 . 9 Combat Bots Only 8 | . 2 2 . 8 Max Kills in Single Turn 2 | . 1 1 . 2 Gunslinging . | . . . . . Exploded 2 | . . . . 2 Melee . | . . . . . Uniques/NPCs Destroyed . | . . . . . Combat | -11 -10 -10 -10 -9 -------- Run | Yrd Mat Min Exi Min Hostile Shots Fired 82 | . 38 11 . 33 Missed 15 | . 5 1 . 9 Damage Taken 1149 | . 445 151 . 553 Core 260 | . 58 49 . 153 Absorbed by Shields . | . . . . . Core Remaining (%) 100 | 100 . . . . Volleys Fired 55 | . 38 8 . 9 Largest 2 | . 2 2 . 2 Hottest 90 | . 90 90 . 90 Shots Fired 91 | . 64 15 . 12 Gun 86 | . 64 15 . 7 Cannon . | . . . . . Launcher 5 | . . . . 5 Special . | . . . . . Kinetic 4 | . . 4 . . Thermal 82 | . 64 11 . 7 Explosive 5 | . . . . 5 Electromagnetic . | . . . . . Robot Hit Streak 12 | . 10 6 . 12 Robot Miss Streak 4 | . 4 1 . . Penetration Max . | . . . . . Secondary Targets 4 | . 2 1 . 1 Max Gunslinging Chain 1 | . 1 1 . 1 Shots Hit Robots 57 | . 41 9 . 7 Core Hits 54 | . 18 6 . 30 Critical Kills . | . . . . . Critical Parts Destroyed . | . . . . . Critical Strikes 5 | . 4 . . 1 Burn 5 | . 4 . . 1 Melee Attacks 1 | . . 1 . . Impact 1 | . . 1 . . Slashing . | . . . . . Piercing . | . . . . . Sneak Attacks . | . . . . . Combat Hostiles . | . . . . . Follow-up Attacks . | . . . . . Damage Inflicted 1147 | . 491 103 . 553 Guns 666 | . 482 103 . 81 Cannons . | . . . . . Explosions 472 | . . . . 472 Melee . | . . . . . Ramming 9 | . 9 . . . Kinetic 6 | . . 6 . . Thermal 660 | . 482 97 . 81 Explosive 472 | . . . . 472 Electromagnetic . | . . . . . Impact . | . . . . . Slashing . | . . . . . Piercing . | . . . . . Highest Corruption 10 | . . . . 10 Average Corruption 5 | . . . . 5 Corruption Purged . | . . . . . Corruption Blocked . | . . . . . Overload Shots . | . . . . . Overflow Damage 1 | . . . . 1 Projectiles . | . . . . . Explosions 1 | . . . . 1 Melee . | . . . . . Knockbacks . | . . . . . Impact . | . . . . . Kinetic . | . . . . . Secondary . | . . . . . Self-Inflicted Damage 21 | . . . . 21 Shots 1 | . . . . 1 Rammed 3 | . 3 . . . Targets Rammed 5 | . 5 . . . Kicked . | . . . . . Crushed 2 | . 2 . . . Highest Temperature 297 | . 297 204 . 125 Average Temperature 97 | . 100 90 . 85 Received Heat Transfer 474 | . 255 99 . 120 Effects 5 | . 4 1 . . Energy Bleed 1 | . 1 . . . Interference 4 | . 3 1 . . Siege Activations . | . . . . . Robots Corrupted . | . . . . . Combat Hostiles . | . . . . . Parts Fried . | . . . . . Impact Corruptions . | . . . . . Robots Melted . | . . . . . Combat Hostiles . | . . . . . Parts Melted 5 | . 5 . . . Heat Transferred 2131 | . 1574 260 . 297 Parts Sabotaged . | . . . . . Parts Stolen . | . . . . . Parts Stripped . | . . . . . Power Chain Reactions . | . . . . . Alert | -11 -10 -10 -10 -9 ------- Run | Yrd Mat Min Exi Min Peak Influence 193 | . 193 32 . 32 Initial 2 | . . 2 . . Average 45 | . 90 25 . . Maximum Alert Level . | . . . . . Low Security (%) 100 | 100 100 100 . 100 Level 1 . | . . . . . Level 2 . | . . . . . Level 3 . | . . . . . Level 4 . | . . . . . Level 5 . | . . . . . High Security . | . . . . . Max Security . | . . . . . Squads Dispatched . | . . . . . Investigation . | . . . . . Extermination . | . . . . . Reinforcement . | . . . . . Assault . | . . . . . Garrison . | . . . . . Intercept . | . . . . . Searches Triggered . | . . . . . Construction Impeded . | . . . . . Haulers Reinforced . | . . . . . Active Scanning Responses . | . . . . . Cargo Convoy Interrupts . | . . . . . Stealth | -11 -10 -10 -10 -9 --------- Run | Yrd Mat Min Exi Min Distress Signals 2 | . 1 . . 1 Communications Jammed . | . . . . . Distress Signals . | . . . . . Times Spotted 31 | . 12 2 . 17 Peak Tracking Total 13 | . 4 2 . 13 Tactical Retreats 1 | . . . . 1 Traps | -11 -10 -10 -10 -9 ------- Run | Yrd Mat Min Exi Min Traps Triggered . | . . . . . Indirectly . | . . . . . Trap Hack Attempts . | . . . . . Triggered . | . . . . . Disarmed . | . . . . . Reprogrammed . | . . . . . Reused . | . . . . . Traps Extracted . | . . . . . Installed . | . . . . . Triggered . | . . . . . Machines | -11 -10 -10 -10 -9 ---------- Run | Yrd Mat Min Exi Min Machines Disabled 1 | . . . . 1 Max in Single Turn 1 | . . . . 1 Machines Repaired . | . . . . . Machines Dismantled . | . . . . . Machines Sabotaged . | . . . . . Overloaded Fab Kills . | . . . . . Hacking | -11 -10 -10 -10 -9 --------- Run | Yrd Mat Min Exi Min Machines Accessed 7 | . 3 . 4 . Terminals 3 | . 3 . . . Fabricators . | . . . . . Repair Stations . | . . . . . Recycling Units . | . . . . . Scanalyzers . | . . . . . Garrison Access . | . . . . . Total Hacks 55 | . 6 . 49 . Successful 50 | . 1 . 49 . Failed 5 | . 5 . . . Catastrophic 1 | . 1 . . . Database Lockouts . | . . . . . Manual 3 | . 2 . 1 . Terminals 6 | . 6 . . . Fabricators . | . . . . . Repair Stations . | . . . . . Recycling Units . | . . . . . Scanalyzers . | . . . . . Garrison Access . | . . . . . Terminal Hacks 50 | . 1 . 49 . Record 49 | . . . 49 . Branch Access Points 1 | . 1 . . . Fabricator Hacks . | . . . . . Repair Station Hacks . | . . . . . Recycling Unit Hacks . | . . . . . Scanalyzer . | . . . . . Garrison Access Hacks . | . . . . . Unauthorized Hacks . | . . . . . Terminals . | . . . . . Fabricators . | . . . . . Repair Stations . | . . . . . Recycling Units . | . . . . . Scanalyzers . | . . . . . Garrison Access . | . . . . . Data Cores Recovered . | . . . . . Used . | . . . . . Hacking Detections 3 | . 3 . . . Full Trace Events . | . . . . . Feedback Events . | . . . . . Feedback Blocked . | . . . . . Robot Schematics Acquired . | . . . . . Robots Built . | . . . . . Authchips . | . . . . . Time . | . . . . . Total Robot Build Rating . | . . . . . Part Schematics Acquired . | . . . . . Parts Built . | . . . . . Authchips . | . . . . . Time . | . . . . . Total Part Build Rating . | . . . . . Parts Repaired . | . . . . . Time . | . . . . . Parts Recycled . | . . . . . Recycled Matter . | . . . . . Retrieved Matter . | . . . . . Retrieved Components . | . . . . . Parts Scanalyzed . | . . . . . Part Schematics Acquired . | . . . . . Parts Damaged . | . . . . . Bothacking | -11 -10 -10 -10 -9 ------------ Run | Yrd Mat Min Exi Min Used RIF Installer . | . . . . . Robots Hacked . | . . . . . Non-combat . | . . . . . Combat . | . . . . . Robot Hacks Applied . | . . . . . Relay Couplers Released . | . . . . . Fabnet Peak Effective % . | . . . . . Robots Rewired . | . . . . . Allies Hacked . | . . . . . Hacks Repelled . | . . . . . Allies | -11 -10 -10 -10 -9 -------- Run | Yrd Mat Min Exi Min Total Allies 2 | . . 2 . . Largest Group 2 | . . 2 2 . Highest-Rated Group 38 | . . 38 38 . Highest-Rated Ally 31 | . . 31 31 . Total Orders . | . . . . . Ally Attacks . | . . . . . Total Damage . | . . . . . Kills . | . . . . . Allies Corrupted . | . . . . . Allies Melted . | . . . . . Intel | -11 -10 -10 -10 -9 ------- Run | Yrd Mat Min Exi Min Robot Analysis Total . | . . . . . Derelict Logs Recovered 2 | . . . . 2 Drone Launches . | . . . . . Drone Recoveries . | . . . . . Exploration | -11 -10 -10 -10 -9 ------------- Run | Yrd Mat Min Exi Min Turns Passed 2321 | 121 474 409 1149 168 Spaces Moved 1223 | 70 206 166 691 90 Core 2 | 2 . . . . Treads 1221 | 68 206 166 691 90 Legs . | . . . . . Wheels . | . . . . . Hover . | . . . . . Flight . | . . . . . Fastest Speed 50 | 50 160 160 160 160 Average Speed 171 | 156 160 223 164 160 Slowest Speed 240 | 160 160 240 240 160 Overloaded Moves . | . . . . . Propulsion Burnouts . | . . . . . Robots Hopped . | . . . . . Cave-ins Triggered . | . . . . . Exploration Rate (%) 39 | 6 32 39 93 26 Regions Visited 4 Branch Regions 3 Pre-discovered Areas 2 | . . . 1 1 Known Exits Taken 1 | . 1 . . . Unknown Exits Taken 3 | 1 . 1 1 . Scrap Searched 2 | . . . . 2 Spaces Dug . | . . . . . Terrain Destroyed 15 | . . . . 15 Melee . | . . . . . Projectile . | . . . . . AOE 15 | . . . . 15 Terrain Rammed . | . . . . . Walls Destroyed . | . . . . . Machines Disabled . | . . . . . Actions | -11 -10 -10 -10 -9 --------- Run | Yrd Mat Min Exi Min Total 1354 | 78 283 188 703 102 Wait 30 | . 22 8 . . Move 1219 | 69 205 165 690 90 Hop . | . . . . . Pick Up 17 | 3 10 3 1 . Fast Attach 10 | 6 2 . 2 . Attach 8 | . . 2 3 3 Detach 3 | . 1 . 2 . Swap 2 | . . 1 1 . Drop 4 | . . . 4 . Fire 55 | . 38 8 . 9 Melee 1 | . . 1 . . Ram . | . . . . . Kick . | . . . . . Crush 5 | . 5 . . . Escape Stasis . | . . . . . Rewire . | . . . . . Trap . | . . . . . Miscellaneous . | . . . . . Route ------- -11/Scrapyard -10/Materials -10/Mines -10/Exiles -9/Mines History --------- Turn | Location | Event 42 | -11/Scrapyard | Discovered new exit (range 15) 122 | -11/Scrapyard | Entered Materials 184 | -10/Materials | Identified exit to Mines 308 | -10/Materials | Build established: Mutant 596 | -10/Materials | Entered Mines 1000 | -10/Mines | Discovered new exit (range 2) 1005 | -10/Mines | Entered Exiles 1005 | -10/Exiles | Accompanied by 2 allies 1035 | -10/Exiles | Led the pair of lost Derelicts to a safe place 1065 | -10/Exiles | Met 8R-AWN 1111 | -10/Exiles | Met EX-HEX 1191 | -10/Exiles | Met EX-DEC 1239 | -10/Exiles | Visited The Gauntlet 1521 | -10/Exiles | Learned location of Zion (-7) 1599 | -10/Exiles | Discovered new exit (range 11) 1761 | -10/Exiles | Met EX-BIN 1814 | -10/Exiles | Aligned with FarCom system 1815 | -10/Exiles | Given EX-Vault access code 1913 | -10/Exiles | Opened EX-Vault 1948 | -10/Exiles | Found Prototype Ballistic Gun 1948 | -10/Exiles | Identified AWS/Gauss 1955 | -10/Exiles | Found Prototype Slashing Weapon 1955 | -10/Exiles | Identified Longsword +1 1994 | -10/Exiles | Found Prototype Ballistic Cannon 2031 | -10/Exiles | Warned to stay clear of 0b10 Research branches 2154 | -10/Exiles | Left Exiles lab with AWS/Autocannon 2154 | -10/Exiles | Entered Mines 2234 | -9/Mines | Learned Materials trap positions 2238 | -9/Mines | Learned location of Storage (-9) 2285 | -9/Mines | Assembled infested the area 2312 | -9/Mines | Core integrity fell below 50% 2319 | -9/Mines | Core integrity fell below 20% 2322 | -9/Mines | System corruption reached 10% 2322 | -9/Mines | Destroyed by D-53 Grenadier with Mini Grenade Launcher Last Messages --------------- Lgt. Treads destroyed. R-06 Scavenger destroyed. Med. Laser destroyed. System corrupted by crushing effect (+4). as-95682 destroyed. as-01632 destroyed. as-19692 destroyed. as-77663 destroyed. as-88876 destroyed. Destroyed Asb. F-torch. as-40152 destroyed. as-12074 destroyed. as-45028 destroyed. as-56463 destroyed. Pressure Siphon disabled. as-64546 destroyed. as-59441 destroyed. Lgt. Treads destroyed. System corrupted by crushing effect (+4). Grenade Launcher destroyed. Map ----- +----------------------------------------------------+ | ?????????????????????????????????????????????????? | | ?????????????????????????????????????????????????? | | ?????????????????????????????????????????????????? | | ?????????????????????????????????????????????????? | | ?????????????????????????????????????????????????? | | ?????????????????????????? ##????#???????????????? | | ?????????????????????????? ?### ??????????????? | | ?????????????????????????? ? #?????????????? | | ?????????????????????????? ? ?????????????? | | ?????????????????????????? #? ????????? ????? | | ?????????????????????????# #? ????????? ???? | | ????????????????????????## #?# ????????? ??? | | ???????????????????????## #?# ?????????? ?? | | ??????????????????????? #?# ?????????? #?? | | ???????????????????????? ### #?????????? #?? | | ????????????????????????# ## ##????????? ??? | | ???????????????????????## * ##????#### ???? | | ??????????????# ######## """ #???## #????? | | ??????????????# """ %= ###?# #????? | | ??????????????? """ = ### #????? | | ??????????????????????# " ## ##??## | | ??????????????????????## #### | | ??????????????????????# ## | | ??????????????????????# | | ??????????????????????# % % %= | | ??????????????????????# @ dd ## # | | ??????????????????????# a ### |%############ | | ??????????????????????# ###?## ##??????????? | | ??????????????????????# ### #????## #???????????? | | ??????????????????????##???##?????# #???????????? | | ??????????????????????????????????# #???????????? | | ??????????????????????????????????# #???????????? | | ??????????????????????????????????# #???????????? | | ??????????????????????????????????# #???????????? | | ??????????????????????????????????# #???????????? | | ??????????????????????????????????# #???????????? | | ??????????????????????????????????# =#??? ##?????? | | ??????????????????????????????????# ## #?????? | | ??????????????????????????????????#! #?????? | | ??????????????????????????????????###### ##?????? | | ?????????????????????????????????????????? ????? | | ?????????????????????????????????????????????#???? | | ?????????????????????????????????????????????????? | | ?????????????????????????????????????????????????? | | ?????????????????????????????????????????????????? | | ?????????????????????????????????????????????????? | | ?????????????????????????????????????????????????? | | ?????????????????????????????????????????????????? | | ?????????????????????????????????????????????????? | | ?????????????????????????????????????????????????? | +----------------------------------------------------+ Best States ------------- Heat Dissipation 25 Energy Generation 14 Energy Capacity 250 Matter Stores 300 Matter Capacity 300 Sight Range 16 Terrain Scan Density 10 Evasion (%) 40 Recoil Reduction 2 Item Schematics ----------------- None Robot Schematics ------------------ None Fabricated ------------ Nothing Alien Tech Used ----------------- None Achievements -------------- None Challenges ------------ None Game ------ Seed PulseCommCorpse Manual? 0 Play Time 00:26:41 Cumulative 9.6 hours Start 2024.04.03 @ 22:29:48 End 2024.04.03 @ 23:23:28 Sessions 1 Manual Loads 0 Difficulty Rogue Special Mode None Game No. 7 Rogue 7 Adventurer 0 Explorer 0 Win Type - Total 0 Types 0/0/0/0/0/0/0/0/0 Lore% 23 Gallery% 18 Achievement% 24 Wizard Run 0 Options --------- Layout 1 ASCII 0 Keyboard 0 Movement Arrows Keybinds 0 Fullscreen 0 Font 20/SmallcapsGlow Map View 50x35 Zoom Use 0% Tactical HUD 0 Map Filters NONE Filters NONE Steam 1 RUN: efaa0806-f2a1-4c85-901c-ea6455c45d6a